fUSD/lending_fUSD_20241117
["ID","MTS","AMOUNT","RATE_DAILY","PERIOD"]
[342416731,1731839405623,500.0,0.00024,60]
[342416732,1731839405700,5656.74,0.00024,60]
[342416733,1731839405819,4292.29,0.00024,60]
[342416734,1731839405877,507.99251252,0.00024,60]
[342416735,1731839405985,5656.74,0.00024,60]
[342416736,1731839406033,500.0,0.00024,60]
[342416737,1731839406097,4292.29,0.00024,60]
[342416738,1731839406322,500.0,0.00024,60]
[342416739,1731839406384,4292.29,0.00024,60]
[342416740,1731839406606,500.0,0.00024,60]
[342416741,1731839406665,4292.29,0.00024,60]
[342416742,1731839406715,5656.74,0.00024,60]
[342416743,1731839406868,500.0,0.00024,60]
[342416744,1731839406918,4292.29,0.00024,60]
[342416745,1731839406970,5656.74,0.00024,60]
[342416746,1731839407127,500.0,0.00024,60]
[342416747,1731839407182,4292.29,0.00024,60]
[342416748,1731839407236,5656.74,0.00024,60]
[342416749,1731839407389,500.0,0.00024,60]
[342416750,1731839407458,4292.29,0.00024,60]
[342416751,1731839407502,1000.0,0.00024,60]
[342416752,1731839407552,5656.74,0.00024,60]
[342416753,1731839407642,500.0,0.00024,60]
[342416754,1731839407690,500.0,0.00024,60]
[342416755,1731839407747,4292.29,0.00024,60]
[342416756,1731839407792,1014.1623394,0.00024,60]
[342416757,1731839407846,5656.74,0.00024,60]
[342416758,1731839407909,500.0,0.00024,60]
[342416759,1731839407960,536.3537157,0.00024,60]
[342416760,1731839408011,500.0,0.00024,60]
[342416761,1731839408063,4292.29,0.00024,60]
[342416762,1731839408128,5656.74,0.00024,60]
[342416763,1731839408213,500.0,0.00024,60]
[342416764,1731839408259,500.0,0.00024,60]
[342416765,1731839408312,4292.29,0.00024,60]
[342416766,1731839408424,5656.74,0.00024,60]
[342416767,1731839408496,500.0,0.00024,60]
[342416768,1731839408545,500.0,0.00024,60]
[342416769,1731839408608,4292.36568073,0.00024,60]
[342416770,1731839408703,5656.74,0.00024,60]
[342416771,1731839408768,500.0,0.00024,60]
[342416772,1731839408825,500.0,0.00024,60]
[342416773,1731839409179,5656.74,0.00024,60]
[342416774,1731839409231,500.0,0.00024,60]
[342416775,1731839409283,500.0,0.00024,60]
[342416776,1731839409697,5656.74,0.00024,60]
[342416777,1731839409759,500.0,0.00024,60]
[342416778,1731839409813,500.0,0.00024,60]
[342416779,1731839409881,5656.74,0.00024,60]
[342416780,1731839409933,500.0,0.00024,60]
[342416781,1731839410000,500.0,0.00024,60]
[342416782,1731839410063,5656.74,0.00024,60]
[342416783,1731839410116,500.0,0.00024,60]
[342416784,1731839410173,500.0,0.00024,60]
[342416785,1731839410232,5656.74,0.00024,60]
[342416786,1731839410283,205.32768701,0.00024,60]
[342416787,1731839410342,500.0,0.00024,60]
[342416788,1731839410443,5656.74,0.00024,60]
[342416789,1731839410536,500.0,0.00024,60]
[342416790,1731839410738,5656.74,0.00024,60]
[342416791,1731839410800,500.0,0.00024,60]
[342416792,1731839410845,500.0,0.00024,60]
[342416793,1731839410997,50000.0,0.00024,60]
[342416794,1731839411047,5656.74,0.00024,60]
[342416795,1731839411095,500.0,0.00024,60]
[342416796,1731839411148,567.89501325,0.00024,60]
[342416797,1731839411191,500.0,0.00024,60]
[342416798,1731839411250,5783.77,0.00024,60]
[342416799,1731839411300,160.82971438,0.00024,60]
[342416800,1731839411347,500.0,0.00024,60]
[342416801,1731839411391,5656.74,0.00024,60]
[342416802,1731839411455,500.0,0.00024,60]
[342416803,1731839411505,5783.77,0.00024,60]
[342416804,1731839411589,500.0,0.00024,60]
[342416805,1731839411644,5656.74,0.00024,60]
[342416806,1731839411701,500.0,0.00024,60]
[342416807,1731839411748,500.0,0.00024,60]
[342416808,1731839411811,5783.77,0.00024,60]
[342416809,1731839411914,500.0,0.00024,60]
[342416810,1731839411975,500.0,0.00024,60]
[342416811,1731839412038,515.42697084,0.00024,60]
[342416812,1731839412082,5656.74,0.00024,60]
[342416813,1731839412127,5783.77,0.00024,60]
[342416814,1731839412207,500.0,0.00024,60]
[342416815,1731839412248,500.0,0.00024,60]
[342416816,1731839412335,5656.74,0.00024,60]
[342416817,1731839412407,5783.77,0.00024,60]
[342416818,1731839412489,255.9508408,0.00024,60]
[342416819,1731839412531,500.0,0.00024,60]
[342416820,1731839412625,5656.78715323,0.00024,60]
[342416821,1731839412724,5783.77,0.00024,60]
[342416822,1731839412798,500.0,0.00024,60]
[342416823,1731839413085,500.0,0.00024,60]
[342416824,1731839413173,5783.77,0.00024,60]
[342416825,1731839413350,500.0,0.00024,60]
[342416826,1731839413465,5783.77,0.00024,60]
[342416827,1731839413618,500.0,0.00024,60]
[342416828,1731839413723,5783.77,0.00024,60]
[342416829,1731839413888,500.0,0.00024,60]
[342416830,1731839414006,5783.77,0.00024,60]
[342416831,1731839414140,544.57868944,0.00024,60]
[342416832,1731839414283,5783.77,0.00024,60]
[342416833,1731839414475,500.0,0.00024,60]
[342416834,1731839414563,5783.77,0.00024,60]
[342416835,1731839414805,530.78538981,0.00024,60]
[342416836,1731839414851,618.53415811,0.00024,60]
[342416837,1731839414899,526.03749203,0.00024,60]
[342416838,1731839414948,5783.77,0.00024,60]
[342416839,1731839415192,5783.77,0.00024,60]
[342416840,1731839415489,5783.77,0.00024,60]
[342416841,1731839415790,5783.77,0.00024,60]
[342416842,1731839416051,5783.77,0.00024,60]
[342416843,1731839416316,5783.77,0.00024,60]
[342416844,1731839416605,5783.77,0.00024,60]
[342416845,1731839416974,5783.77,0.00024,60]
[342416846,1731839417157,502.15819113,0.00024,60]
[342416847,1731839417255,5783.77,0.00024,60]
[342416848,1731839417537,5783.77,0.00024,60]
[342416849,1731839417817,5783.77,0.00024,60]
[342416850,1731839418123,5783.88549287,0.00024,60]
[342416851,1731839418925,500.0,0.00024,60]
[342416852,1731839419175,500.0,0.00024,60]
[342416853,1731839419433,500.0,0.00024,60]
[342416854,1731839420045,500.0,0.00024,60]
[342416855,1731839420184,500.0,0.00024,60]
[342416856,1731839420246,500.0,0.00024,60]
[342416857,1731839420610,500.0,0.00024,60]
[342416858,1731839420656,500.0,0.00024,60]
[342416859,1731839420881,500.0,0.00024,60]
[342416860,1731839420924,500.0,0.00024,60]
[342416861,1731839420963,437.37510715,0.00024,60]
[342416862,1731839421144,500.0,0.00024,60]
[342416863,1731839421184,199.94637152,0.00024,60]
[342416864,1731839421435,500.0,0.00024,60]
[342416865,1731839421709,500.0,0.00024,60]
[342416866,1731839422479,500.0,0.00024,60]
[342416867,1731839422741,500.0,0.00024,60]
[342416868,1731839422786,500.0,0.00024,60]
[342416869,1731839423002,500.0,0.00024,60]
[342416870,1731839423048,500.0,0.00024,60]
[342416871,1731839423274,500.0,0.00024,60]
[342416872,1731839423317,500.0,0.00024,60]
[342416873,1731839423567,500.0,0.00024,60]
[342416874,1731839423612,500.0,0.00024,60]
[342416875,1731839423821,500.0,0.00024,60]
[342416876,1731839423865,500.0,0.00024,60]
[342416877,1731839424103,500.0,0.00024,60]
[342416878,1731839424384,500.0,0.00024,60]
[342416879,1731839424745,500.0,0.00024,60]
[342416880,1731839425006,500.0,0.00024,60]
[342416881,1731839425288,500.0,0.00024,60]
[342416882,1731839425477,500.0,0.00024,60]
[342416883,1731839425540,500.0,0.00024,60]
[342416884,1731839425750,506.13408041,0.00024,60]
[342416885,1731839425831,500.0,0.00024,60]
[342416886,1731839426076,500.0,0.00024,60]
[342416887,1731839426348,500.0,0.00024,60]
[342416888,1731839426397,211.32507628,0.00024,60]
[342416889,1731839426599,500.0,0.00024,60]
[342416890,1731839426849,500.0,0.00024,60]
[342416891,1731839427298,500.0,0.00024,60]
[342416892,1731839427554,500.0,0.00024,60]
[342416893,1731839427825,500.0,0.00024,60]
[342416894,1731839428075,500.0,0.00024,60]
[342416895,1731839428122,500.0,0.00024,60]
[342416896,1731839428316,500.0,0.00024,60]
[342416897,1731839428367,301.89730682,0.00024,60]
[342416898,1731839428578,500.0,0.00024,60]
[342416899,1731839428622,500.0,0.00024,60]
[342416900,1731839428847,500.0,0.00024,60]
[342416901,1731839429144,500.0,0.00024,60]
[342416902,1731839429204,500.0,0.00024,60]
[342416903,1731839429258,500.0,0.00024,60]
[342416904,1731839429434,500.0,0.00024,60]
[342416905,1731839429493,303.44543793,0.00024,60]
[342416906,1731839429599,500.0,0.00024,60]
[342416907,1731839429741,500.0,0.00024,60]
[342416908,1731839429850,500.0,0.00024,60]
[342416909,1731839430019,500.0,0.00024,60]
[342416910,1731839430428,500.0,0.00024,60]
[342416911,1731839430486,500.0,0.00024,60]
[342416912,1731839430544,500.0,0.00024,60]
[342416913,1731839430599,500.0,0.00024,60]
[342416914,1731839430643,500.0,0.00024,60]
[342416915,1731839430691,500.0,0.00024,60]
[342416916,1731839430750,500.0,0.00024,60]
[342416917,1731839430833,482.46492714,0.00024,60]
[342416918,1731839430963,500.0,0.00024,60]
[342416919,1731839431009,500.0,0.00024,60]
[342416920,1731839431229,500.0,0.00024,60]
[342416921,1731839431274,500.0,0.00024,60]
[342416922,1731839431515,500.0,0.00024,60]
[342416923,1731839431557,500.0,0.00024,60]
[342416924,1731839431654,500.0,0.00024,60]
[342416925,1731839431812,500.0,0.00024,60]
[342416926,1731839431859,500.0,0.00024,60]
[342416927,1731839431972,500.0,0.00024,60]
[342416930,1731839432093,500.0,0.00024,60]
[342416932,1731839432139,646.63355958,0.00024,60]
[342416935,1731839432266,501.68925544,0.00024,60]
[342416938,1731839432354,559.39888453,0.00024,60]
[342416939,1731839432401,500.0,0.00024,60]
[342416940,1731839432479,-910.05,8.742e-05,2]
[342416941,1731839432490,-190.02,8.743e-05,2]
[342416942,1731839432500,-300.0,8.747e-05,2]
[342416943,1731839432509,-987.6257949,8.748e-05,2]
[342416944,1731839432520,-9650.018,8.748e-05,2]
[342416945,1731839432534,-13262.3562051,8.748e-05,2]
[342416946,1731839432545,-500.0,8.763e-05,2]
[342416947,1731839432554,-300.0,8.776e-05,2]
[342416948,1731839432568,-250.0,8.784e-05,2]
[342416949,1731839432578,-384.0,8.788e-05,2]
[342416950,1731839432588,-1000.0,8.803e-05,2]
[342416951,1731839432597,-449.43,8.823e-05,2]
[342416952,1731839432607,-1672.68,8.866e-05,2]
[342416953,1731839432619,-250.0,8.903e-05,2]
[342416954,1731839432629,-162.96,8.931e-05,2]
[342416955,1731839432638,-335.1483873,9.004e-05,2]
[342416956,1731839432651,-1478.5216127,9.004e-05,2]
[342416957,1731839432660,-1009.2,9.029e-05,2]
[342416958,1731839432669,-166.4,9.048e-05,2]
[342416959,1731839432679,-250.0,9.066e-05,2]
[342416960,1731839432690,-150.0,9.607e-05,2]
[342416961,1731839432699,-420.0,9.622e-05,2]
[342416962,1731839432710,-94.3997613,9.74e-05,2]
[342416963,1731839432757,500.0,0.00024,60]
[342416964,1731839432818,500.0,0.00024,60]
[342416965,1731839432879,500.0,0.00024,60]
[342416988,1731839433098,500.0,0.00024,60]
[342417029,1731839433515,500.0,0.00024,60]
[342417036,1731839433573,50000.0,0.00024,60]
[342417038,1731839433624,500.0,0.00024,60]
[342417039,1731839433670,500.0,0.00024,60]
[342417040,1731839433740,500.0,0.00024,60]
[342417048,1731839433873,50000.0,0.00024,60]
[342417055,1731839433935,500.0,0.00024,60]
[342417068,1731839434055,500.0,0.00024,60]
[342417076,1731839434122,500.0,0.00024,60]
[342417101,1731839434381,500.0,0.00024,60]
[342417107,1731839434436,453.42195773,0.00024,60]
[342417113,1731839434489,500.0,0.00024,60]
[342417119,1731839434542,50000.0,0.00024,60]
[342417134,1731839434696,623.94947687,0.00024,60]
[342417142,1731839434760,500.0,0.00024,60]
[342417156,1731839434883,500.0,0.00024,60]
[342417162,1731839434933,50000.0,0.00024,60]
[342417170,1731839434995,500.0,0.00024,60]
[342417179,1731839435074,500.0,0.00024,60]
[342417200,1731839435251,500.0,0.00024,60]
[342417208,1731839435315,4761.72,0.00024,60]
[342417219,1731839435418,500.0,0.00024,60]
[342417228,1731839435498,50000.0,0.00024,60]
[342417245,1731839435646,500.0,0.00024,60]
[342417252,1731839435704,4761.72,0.00024,60]
[342417265,1731839435814,500.0,0.00024,60]
[342417271,1731839435863,4761.72,0.00024,60]
[342417277,1731839435913,500.0,0.00024,60]
[342417283,1731839435968,500.0,0.00024,60]
[342417294,1731839436101,500.0,0.00024,60]
[342417300,1731839436152,4761.72,0.00024,60]
[342417301,1731839436200,500.0,0.00024,60]
[342417302,1731839436316,500.0,0.00024,60]
[342417303,1731839436374,500.0,0.00024,60]
[342417304,1731839436442,4761.72,0.00024,60]
[342417305,1731839436495,500.0,0.00024,60]
[342417306,1731839436541,500.0,0.00024,60]
[342417307,1731839436592,500.0,0.00024,60]
[342417308,1731839436645,587.39764276,0.00024,60]
[342417309,1731839436698,4761.72,0.00024,60]
[342417310,1731839436748,500.0,0.00024,60]
[342417311,1731839436791,500.0,0.00024,60]
[342417312,1731839436914,500.0,0.00024,60]
[342417313,1731839436959,4761.72,0.00024,60]
[342417314,1731839437004,500.0,0.00024,60]
[342417315,1731839437055,500.0,0.00024,60]
[342417316,1731839437180,500.0,0.00024,60]
[342417317,1731839437225,4761.72,0.00024,60]
[342417318,1731839437270,500.0,0.00024,60]
[342417319,1731839437411,500.0,0.00024,60]
[342417320,1731839437481,500.0,0.00024,60]
[342417321,1731839437525,4761.72,0.00024,60]
[342417322,1731839437568,500.0,0.00024,60]
[342417323,1731839437678,500.0,0.00024,60]
[342417324,1731839437773,4761.72,0.00024,60]
[342417325,1731839437815,500.0,0.00024,60]
[342417326,1731839437856,500.0,0.00024,60]
[342417327,1731839437972,500.0,0.00024,60]
[342417328,1731839438037,4761.72,0.00024,60]
[342417329,1731839438085,500.0,0.00024,60]
[342417331,1731839438128,500.0,0.00024,60]
[342417332,1731839438225,500.0,0.00024,60]
[342417333,1731839438239,-55.6002387,9.74e-05,2]
[342417334,1731839438249,-150.0,9.74e-05,2]
[342417335,1731839438258,-150.0,9.76e-05,2]
[342417336,1731839438268,-150.0,9.76e-05,2]
[342417337,1731839438277,-150.0,9.766e-05,2]
[342417338,1731839438286,-150.0,9.77e-05,2]
[342417339,1731839438296,-150.0,9.772e-05,2]
[342417340,1731839438305,-150.0,9.775e-05,2]
[342417341,1731839438315,-150.0,9.782e-05,2]
[342417342,1731839438324,-150.0,9.784e-05,2]
[342417343,1731839438334,-150.0,9.784e-05,2]
[342417344,1731839438344,-150.0,9.792e-05,2]
[342417345,1731839438355,-150.0,9.795e-05,2]
[342417346,1731839438366,-150.0,9.795e-05,2]
[342417347,1731839438376,-592.7417,9.8e-05,2]
[342417348,1731839438386,-150.0,9.803e-05,2]
[342417349,1731839438396,-150.0,9.805e-05,2]
[342417350,1731839438405,-150.0,9.811e-05,2]
[342417351,1731839438415,-150.0,9.829e-05,2]
[342417352,1731839438425,-150.0,9.851e-05,2]
[342417353,1731839438436,-150.0,9.852e-05,2]
[342417354,1731839438447,-150.0,9.855e-05,2]
[342417355,1731839438460,-305.52115767,9.887e-05,2]
[342417356,1731839438472,-78.47884233,9.887e-05,2]
[342417357,1731839438482,-150.0,9.889e-05,2]
[342417358,1731839438491,-4768.93755767,9.9e-05,2]
[342417359,1731839438546,4761.72,0.00024,60]
[342417360,1731839438614,500.0,0.00024,60]
[342417361,1731839438629,-1923.21,8.923e-05,2]
[342417362,1731839438639,-6960.42758518,9.9e-05,2]
[342417363,1731839438649,-1024.629,9.903e-05,2]
[342417364,1731839438659,-1000.0,9.904e-05,2]
[342417365,1731839438669,-150.0,9.913e-05,2]
[342417366,1731839438678,-500.0,9.92e-05,2]
[342417367,1731839438689,-150.0,9.928e-05,2]
[342417369,1731839438700,-150.0,9.93e-05,2]
[342417371,1731839438709,-150.0,9.94e-05,2]
[342417373,1731839438719,-150.0,9.942e-05,2]
[342417389,1731839438945,-150.0,9.958e-05,2]
[342417390,1731839439018,-150.0,9.963e-05,2]
[342417391,1731839439027,-150.0,9.964e-05,2]
[342417392,1731839439037,-150.0,9.977e-05,2]
[342417393,1731839439046,-150.0,9.979e-05,2]
[342417394,1731839439055,-150.0,9.987e-05,2]
[342417395,1731839439065,-150.0,9.989e-05,2]
[342417396,1731839439075,-855.4795474,9.99e-05,2]
[342417397,1731839439084,-194.9690997,9.991e-05,2]
[342417398,1731839439094,-194.9690997,9.993e-05,2]
[342417399,1731839439104,-194.9690997,9.993e-05,2]
[342417400,1731839439116,-745.0621926,9.993e-05,2]
[342417401,1731839439126,-634.6448379,9.993e-05,2]
[342417402,1731839439136,-2122.31946171,9.997e-05,2]
[342417403,1731839439145,-2126.5000004,9.997e-05,2]
[342417404,1731839439155,-3635.45036546,9.998e-05,2]
[342417405,1731839439164,-527.65,9.998e-05,2]
[342417406,1731839439173,-628.0,9.999e-05,2]
[342417407,1731839439182,-1993.0,9.999e-05,2]
[342417408,1731839439191,-1925.0,9.999e-05,2]
[342417409,1731839439201,-560.0,9.999e-05,2]
[342417410,1731839439210,-3746.0,9.999e-05,2]
[342417411,1731839439219,-1260.0,9.999e-05,2]
[342417412,1731839439228,-814.0,9.999e-05,2]
[342417413,1731839439239,-921.0,9.999e-05,2]
[342417414,1731839439249,-512.71971025,9.999e-05,2]
[342417415,1731839439293,500.0,0.00024,60]
[342417416,1731839439337,248.91158838,0.00024,60]
[342417417,1731839439434,500.0,0.00024,60]
[342417418,1731839439483,4761.72,0.00024,60]
[342417419,1731839439530,500.0,0.00024,60]
[342417420,1731839439573,500.0,0.00024,60]
[342417421,1731839439645,500.0,0.00024,60]
[342417422,1731839439693,4761.72,0.00024,60]
[342417423,1731839439750,500.0,0.00024,60]
[342417424,1731839439796,361.15255962,0.00024,60]
[342417425,1731839439872,500.0,0.00024,60]
[342417426,1731839439947,4761.72,0.00024,60]
[342417427,1731839440011,500.0,0.00024,60]
[342417428,1731839440062,500.0,0.00024,60]
[342417430,1731839440135,500.0,0.00024,60]
[342417436,1731839440190,500.0,0.00024,60]
[342417441,1731839440246,4761.72,0.00024,60]
[342417442,1731839440304,500.0,0.00024,60]
[342417443,1731839440378,500.0,0.00024,60]
[342417457,1731839440793,500.0,0.00024,60]
[342417458,1731839440891,4761.72,0.00024,60]
[342417459,1731839440964,627.76038981,0.00024,60]
[342417460,1731839441010,500.0,0.00024,60]
[342417461,1731839441055,500.0,0.00024,60]
[342417462,1731839441076,-1887.29886791,9.999e-05,2]
[342417463,1731839441127,500.0,0.00024,60]
[342417464,1731839441173,500.0,0.00024,60]
[342417465,1731839441220,4761.72,0.00024,60]
[342417466,1731839441238,-1090.98142184,9.999e-05,2]
[342417467,1731839441248,-150.0,9.999e-05,2]
[342417468,1731839441258,-563.0,9.999e-05,2]
[342417469,1731839441268,-1256.0,9.999e-05,2]
[342417470,1731839441278,-631.0,9.999e-05,2]
[342417471,1731839441288,-59057.75308338,9.999e-05,2]
[342417472,1731839441300,-31808.87303903,9.999e-05,2]
[342417473,1731839441313,-24003.88212515,9.999e-05,2]
[342417474,1731839441330,-1902.19130534,9.999e-05,2]
[342417475,1731839441386,500.0,0.00024,60]
[342417476,1731839441453,4761.72,0.00024,60]
[342417477,1731839441502,500.0,0.00024,60]
[342417478,1731839441567,500.0,0.00024,60]
[342417479,1731839441624,4761.72,0.00024,60]
[342417480,1731839441671,500.0,0.00024,60]
[342417481,1731839441754,4761.72,0.00024,60]
[342417482,1731839441800,500.0,0.00024,60]
[342417483,1731839441862,500.0,0.00024,60]
[342417484,1731839441916,4761.72,0.00024,60]
[342417485,1731839441964,639.84714816,0.00024,60]
[342417486,1731839442039,500.0,0.00024,60]
[342417487,1731839442293,4761.72,0.00024,60]
[342417488,1731839442364,500.0,0.00024,60]
[342417489,1731839442409,4761.8206955,0.00024,60]
[342417490,1731839442550,500.0,0.00024,60]
[342417491,1731839442839,500.0,0.00024,60]
[342417492,1731839442891,500.0,0.00024,60]
[342417493,1731839443113,641.07502346,0.00024,60]
[342417495,1731839443168,502.29730269,0.00024,60]
[342417496,1731839443217,248.06406647,0.00024,60]
[342417497,1731839443250,-443.04746471,9.999e-05,2]
[342417498,1731839443263,-516.46304844,9.999e-05,2]
[342417499,1731839443275,-17315.78349001,9.999e-05,2]
[342417500,1731839443287,-970.81531842,9.999e-05,2]
[342417501,1731839443362,-16028.57723334,9.999e-05,2]
[342417502,1731839443415,500.0,0.00024,60]
[342417503,1731839443453,-4936.06331683,9.999e-05,2]
[342417504,1731839443466,-7599.87476502,9.999e-05,2]
[342417505,1731839443761,-592.6801185,9.999e-05,2]
[342417506,1731839443779,-6211.14649346,9.999e-05,2]
[342417507,1731839443790,-5992.4968999,9.999e-05,2]
[342417513,1731839443838,500.94414325,0.00024,60]
[342417515,1731839444408,523.2970702,0.00024,60]
[342417516,1731839444459,500.0,0.00024,60]
[342417517,1731839444550,500.43630506,0.00024,60]
[342417518,1731839444687,500.0,0.00024,60]
[342417519,1731839444970,280.26403529,0.00024,60]
[342417520,1731839445364,503.75650235,0.00024,60]
[342417521,1731839445656,500.0,0.00024,60]
[342417522,1731839445926,500.0,0.00024,60]
[342417527,1731839446202,442.86197281,0.00024,60]
[342417528,1731839446218,-1945.342992,9.999e-05,2]
[342417529,1731839446374,-31525.2000001,9.999e-05,2]
[342417530,1731839446385,-412.19999999,9.999e-05,2]
[342417531,1731839446516,-1523.38390989,9.999e-05,2]
[342417549,1731839446785,638.42535759,0.00024,60]
[342417553,1731839446985,500.0,0.00024,60]
[342417554,1731839447284,502.06770266,0.00024,60]
[342417555,1731839447339,501.33318112,0.00024,60]
[342417556,1731839447422,500.0,0.00024,60]
[342417557,1731839447733,500.0,0.00024,60]
[342417558,1731839447783,500.0,0.00024,60]
[342417559,1731839447956,500.0,0.00024,60]
[342417560,1731839448006,500.0,0.00024,60]
[342417561,1731839448207,501.10377084,0.00024,60]
[342417562,1731839448254,500.0,0.00024,60]
[342417563,1731839448309,538.25,0.00024,60]
[342417564,1731839448492,500.0,0.00024,60]
[342417565,1731839448576,538.25,0.00024,60]
[342417566,1731839448742,500.0,0.00024,60]
[342417567,1731839448859,538.25,0.00024,60]
[342417568,1731839448908,500.0,0.00024,60]
[342417569,1731839449018,500.0,0.00024,60]
[342417570,1731839449064,500.0,0.00024,60]
[342417571,1731839449128,500.0,0.00024,60]
[342417572,1731839449173,538.25,0.00024,60]
[342417573,1731839449292,500.0,0.00024,60]
[342417574,1731839449336,500.0,0.00024,60]
[342417575,1731839449386,500.0,0.00024,60]
[342417576,1731839449432,538.25,0.00024,60]
[342417577,1731839449560,276.30743963,0.00024,60]
[342417578,1731839449608,500.0,0.00024,60]
[342417579,1731839449658,500.0,0.00024,60]
[342417580,1731839449718,500.0,0.00024,60]
[342417581,1731839449767,538.25,0.00024,60]
[342417582,1731839449834,500.0,0.00024,60]
[342417583,1731839449908,500.0,0.00024,60]
[342417584,1731839449955,539.76719571,0.00024,60]
[342417585,1731839450002,538.25,0.00024,60]
[342417586,1731839450147,500.0,0.00024,60]
[342417587,1731839450292,500.0,0.00024,60]
[342417588,1731839450351,538.25,0.00024,60]
[342417589,1731839450460,534.91491333,0.00024,60]
[342417590,1731839450517,500.0,0.00024,60]
[342417591,1731839450601,538.25,0.00024,60]
[342417592,1731839450724,1372.56,0.00024,60]
[342417593,1731839450769,500.0,0.00024,60]
[342417594,1731839451488,538.25,0.00024,60]
[342417595,1731839451530,1372.56,0.00024,60]
[342417596,1731839451571,500.0,0.00024,60]
[342417597,1731839451612,538.25,0.00024,60]
[342417598,1731839451658,1372.56,0.00024,60]
[342417599,1731839451702,500.0,0.00024,60]
[342417600,1731839451753,538.25,0.00024,60]
[342417601,1731839451810,1372.56,0.00024,60]
[342417602,1731839451859,538.25,0.00024,60]
[342417603,1731839451904,1372.56,0.00024,60]
[342417604,1731839452032,500.0,0.00024,60]
[342417606,1731839452157,538.25,0.00024,60]
[342417607,1731839452203,1372.56,0.00024,60]
[342417608,1731839452315,500.0,0.00024,60]
[342417609,1731839452374,500.0,0.00024,60]
[342417610,1731839452435,1372.56,0.00024,60]
[342417611,1731839452493,538.25,0.00024,60]
[342417612,1731839452590,500.0,0.00024,60]
[342417613,1731839452660,4297.5,0.00024,60]
[342417614,1731839452713,500.0,0.00024,60]